bitfinex-derivatives/quotes_SOLF0:USTF0_20260215
["timestamp","ask_amount","ask_price","bid_price","bid_amount"]
[1771120419023,14.05285495,88.062,88.021,3.70725362]
[1771120419330,3.82715495,88.061,88.004,3.70725362]
[1771120419821,3.82715495,88.061,87.965,11.38]
[1771120419822,10.2262,88.057,88.02,2.41066511]
[1771120421317,10.2252,88.066,88.021,3.83971456]
[1771120421921,3.66029569,88.075,87.977,34.17]
[1771120421922,3.66029569,88.075,88.031,3.83971456]
[1771120422729,10.2245,88.073,88.031,3.83971456]
[1771120426933,3.94299954,88.063,88.03,2.41066511]
[1771120427139,3.94299954,88.063,88.01,2.41066511]
[1771120428738,10.228,88.042,88.01,2.41066511]
[1771120429839,10.2283,88.039,88.0,2.41066511]
[1771120430135,3.94299954,88.038,88.0,2.41066511]
[1771120431634,10.2276,88.046,88.0,6.32327422]
[1771120431835,10.2276,88.046,88.001,3.91260911]
[1771120433236,10.2276,88.046,88.01,2.41066511]
[1771120433434,14.17059954,88.046,88.01,2.41066511]
[1771120433634,3.94299954,88.041,87.988,3.91260911]
[1771120433846,3.94299954,88.041,88.0,2.41066511]
[1771120434739,10.2289,88.034,88.0,2.41066511]
[1771120436847,10.2289,88.034,88.0,2.40901066]
[1771120437042,10.2289,88.034,87.988,3.91260911]
[1771120437043,3.94299954,88.03,87.99,2.40901066]
[1771120438048,3.94299954,88.027,87.955,3.91260911]
[1771120438344,20.4512,88.063,87.955,3.91260911]
[1771120438345,3.94299954,88.019,87.955,3.91260911]
[1771120438543,3.94299954,88.019,87.96,2.40901066]
[1771120439844,3.94299954,88.019,87.971,3.91260911]
[1771120441350,10.2322,88.006,87.971,3.91260911]
[1771120441547,10.2322,88.006,87.96,2.40901066]
[1771120442249,3.94299954,87.994,87.95,2.40901066]
[1771120442841,10.2326,88.003,87.951,3.91260911]
[1771120443144,10.2326,88.003,87.96,2.40901066]
[1771120446751,10.2326,88.003,87.961,3.91260911]
[1771120446952,10.2314,88.013,87.971,3.91260911]
[1771120449957,14.17549954,88.004,87.97,2.40901066]
[1771120451060,3.94299954,88.003,87.97,2.40901066]
[1771120451661,3.94299954,88.003,87.96,2.40901066]
[1771120451971,3.94299954,88.003,87.96,6.32161977]
[1771120452463,3.94299954,88.003,87.961,3.91260911]
[1771120453059,10.2314,88.013,87.971,3.62889937]
[1771120453758,3.82791605,88.018,87.98,2.40901066]
[1771120454158,3.82791605,88.018,87.971,3.62889937]
[1771120454555,3.82791605,88.018,87.98,2.40901066]
[1771120455565,3.82791605,88.018,87.971,3.62889937]
[1771120455866,10.2312,88.015,87.971,3.62889937]
[1771120457567,3.82791605,88.018,87.971,3.62889937]
[1771120458660,10.2309,88.017,87.971,3.62889937]
[1771120458864,14.05881605,88.017,87.971,3.62889937]
[1771120461564,3.82791605,88.017,87.981,3.62889937]
[1771120461766,3.82791605,88.034,87.99,2.40901066]
[1771120463866,3.82791605,88.032,87.99,2.40901066]
[1771120466669,3.82791605,88.032,88.0,2.40901066]
[1771120468070,10.2281,88.041,88.001,3.62889937]
[1771120468267,3.82791605,88.061,88.02,2.40901066]
[1771120468762,3.82791605,88.061,88.03,2.40901066]
[1771120469168,3.82791605,88.075,88.04,2.40901066]
[1771120470571,3.82791605,88.09,88.041,3.62889937]
[1771120470776,3.82791605,88.103,88.06,2.40901066]
[1771120471174,3.82791605,88.103,88.015,34.17]
[1771120471175,3.82791605,88.103,88.07,2.40901066]
[1771120471567,10.221,88.102,88.06,2.40901066]
[1771120471776,3.82791605,88.101,88.05,2.40901066]
[1771120472765,3.82791605,88.098,88.05,2.40901066]
[1771120473771,3.82791605,88.093,88.05,2.40901066]
[1771120477378,3.82791605,88.088,88.05,2.40901066]
[1771120478872,3.82791605,88.086,88.05,2.40901066]
[1771120488476,3.82791605,88.086,88.06,2.40901066]
[1771120488684,3.91196588,88.084,88.05,2.40901066]
[1771120489786,10.2232,88.083,88.05,2.40901066]
[1771120492286,3.91196588,88.084,88.051,3.56563493]
[1771120492585,10.2223,88.091,88.051,3.56563493]
[1771120493182,90.62,88.122,88.008,3.56563493]
[1771120493183,3.91196588,88.084,88.008,3.56563493]
[1771120493383,3.91196588,88.084,88.03,2.40901066]
[1771120493791,10.225,88.068,88.03,2.40901066]
[1771120493990,10.225,88.068,88.04,2.40901066]
[1771120495692,10.225,88.068,88.03,2.40901066]
[1771120496090,3.91196588,88.061,88.03,2.40901066]
[1771120496291,3.91196588,88.061,88.02,2.40901066]
[1771120496492,3.91196588,88.061,88.01,2.40901066]
[1771120496697,3.91196588,88.061,88.009,3.56563493]
[1771120497686,10.2278,88.044,88.009,3.56563493]
[1771120497892,3.91196588,88.043,88.001,3.56563493]
[1771120499794,3.91196588,88.041,87.988,3.56563493]
[1771120500001,3.91196588,88.041,87.99,2.40897295]
[1771120500501,3.91196588,88.041,87.945,34.17]
[1771120500502,3.91196588,88.023,87.98,2.40897295]
[1771120500693,3.91196588,88.023,87.975,3.56563493]
[1771120501204,34.17,88.071,87.99,5.97460788]
[1771120501205,3.91196588,88.034,87.99,5.97460788]
[1771120501404,3.91196588,88.034,87.98,2.40897295]
[1771120501901,3.91196588,88.034,87.981,3.56563493]
[1771120502698,3.91196588,88.03,87.981,3.56563493]
[1771120502898,3.91196588,88.03,87.991,3.56563493]
[1771120503399,10.2295,88.029,87.991,3.56563493]
[1771120505398,10.2282,88.04,88.0,2.40897295]
[1771120505998,3.91196588,88.049,88.001,3.56563493]
[1771120506202,3.91196588,88.049,88.01,2.40897295]
[1771120507705,10.2273,88.048,88.01,2.40897295]
[1771120510204,10.2261,88.059,88.02,2.40897295]
[1771120511104,14.13806588,88.059,88.021,3.56563493]
[1771120511305,3.91196588,88.055,88.01,2.40897295]
[1771120511507,3.91196588,88.055,88.008,3.56563493]
[1771120512007,3.91196588,88.042,88.0,2.40897295]
[1771120513311,3.93120618,88.037,87.99,2.40897295]
[1771120513605,3.93120618,88.037,87.984,3.8501811]
[1771120514304,3.93120618,88.015,87.971,3.8501811]
[1771120515704,10.2312,88.014,87.971,3.8501811]
[1771120518315,3.93120618,88.045,87.991,3.8501811]
[1771120519808,3.93120618,88.033,87.991,3.8501811]
[1771120520721,10.2295,88.029,87.991,3.8501811]
[1771120523013,3.93120618,88.033,87.991,3.8501811]
[1771120523212,10.2281,88.041,88.001,3.8501811]
[1771120523818,3.93120618,88.045,88.001,3.8501811]
[1771120524419,3.93120618,88.045,88.01,2.40897295]
[1771120525323,10.2265,88.055,88.011,3.63968292]
[1771120526514,10.2265,88.055,88.02,2.40897295]
[1771120527728,10.227,88.051,88.02,2.40897295]
[1771120528926,10.2256,88.063,88.03,2.40897295]
[1771120531517,3.67252528,88.068,88.03,2.40897295]
[1771120533027,300.74,88.103,87.952,35.07487297]
[1771120533028,3.67252528,88.08,88.05,2.40897295]
[1771120534027,3.67252528,88.077,88.028,3.63968292]
[1771120534226,3.67252528,88.077,88.02,2.40897295]
[1771120534427,3.67252528,88.077,88.015,3.63968292]
[1771120534628,3.67252528,88.077,88.02,2.40897295]
[1771120535837,3.67252528,88.07,88.02,2.40897295]
[1771120536740,10.225,88.068,88.02,6.04865587]
[1771120537035,3.67252528,88.067,88.03,2.40897295]
[1771120538835,3.67252528,88.083,88.03,2.40897295]
[1771120539039,10.224,88.077,88.04,2.40897295]
[1771120540341,3.67252528,88.083,88.05,2.40897295]
[1771120540841,10.2225,88.09,88.05,2.40897295]
[1771120541037,3.83040117,88.095,88.05,2.40897295]
[1771120541635,3.83040117,88.095,88.06,2.40897295]
[1771120543637,3.83040117,88.095,88.045,3.82816381]
[1771120543638,3.83040117,88.095,88.05,2.40897295]
[1771120544844,3.72998715,88.091,88.05,2.40897295]
[1771120545544,13.95088715,88.103,88.051,3.67496044]
[1771120545746,13.95088715,88.103,88.06,2.40897295]
[1771120546133,3.72998715,88.102,88.06,2.40897295]
[1771120547543,3.72998715,88.102,88.051,3.67496044]
[1771120550053,3.72998715,88.1,88.06,2.40897295]
[1771120552844,3.72998715,88.1,88.061,3.67496044]
[1771120554049,3.72998715,88.1,88.063,3.67496044]
[1771120554253,3.72998715,88.1,88.07,2.40897295]
[1771120558959,3.72998715,88.1,88.07,2.40546103]
[1771120562658,3.72998715,88.11,88.071,3.67496044]
[1771120562960,3.72998715,88.11,88.08,2.40546103]
[1771120565167,3.72998715,88.11,88.071,3.67496044]
[1771120566056,3.72998715,88.11,88.072,3.67496044]
[1771120566259,2.40546103,88.15,88.08,2.40546103]
[1771120567759,10.2167,88.14,88.083,10.2232]
[1771120568260,3.72998715,88.139,88.083,10.2232]
[1771120569767,3.72998715,88.137,88.08,2.40546103]
[1771120570062,3.72998715,88.129,88.072,3.67496044]
[1771120570866,3.72998715,88.126,88.072,3.67496044]
[1771120571363,3.72998715,88.126,88.081,3.67496044]
[1771120574068,3.72998715,88.126,88.09,5.9749693]
[1771120575569,3.59791891,88.147,88.091,3.56950827]
[1771120575777,3.59791891,88.161,88.11,2.40546103]
[1771120576066,3.59791891,88.161,88.111,3.56950827]
[1771120577769,3.59791891,88.159,88.111,3.56950827]
[1771120579265,3.59791891,88.175,88.13,2.40546103]
[1771120579471,3.59791891,88.175,88.12,2.40546103]
[1771120579674,3.59791891,88.169,88.11,2.40546103]
[1771120579973,2.74769446,88.167,88.11,2.40546103]
[1771120580375,10.2139,88.164,88.11,2.40546103]
[1771120580771,2.40546103,88.15,88.091,3.56950827]
[1771120581372,10.2164,88.142,88.091,3.56950827]
[1771120581777,2.40546103,88.14,88.081,3.56950827]
[1771120581969,3.5280621,88.139,88.081,3.56950827]
[1771120582369,3.5280621,88.152,88.101,3.56950827]
[1771120584467,3.53588144,88.15,88.1,2.40546103]
[1771120584673,3.53588144,88.139,88.08,2.40546103]
[1771120585776,3.53582841,88.137,88.08,2.40546103]
[1771120586473,10.2171,88.136,88.08,2.40546103]
[1771120586779,3.53651779,88.135,88.08,2.40546103]
[1771120587078,3.53651779,88.135,88.081,3.56950827]
[1771120587679,10.2184,88.125,88.081,3.56950827]
[1771120588573,10.2187,88.123,88.081,3.56950827]
[1771120592378,13.74286284,88.123,88.081,3.56950827]
[1771120592578,10.2175,88.133,88.081,3.56950827]
[1771120592882,10.2175,88.133,88.091,3.56950827]
[1771120594182,3.52587828,88.127,88.091,3.56950827]
[1771120601787,3.52587828,88.127,88.08,2.40546103]
[1771120602292,3.52587828,88.127,88.081,3.78790649]
[1771120602787,10.2178,88.13,88.083,3.78790649]
[1771120602994,3.44211721,88.138,88.101,3.76407117]
[1771120603784,10.217,88.137,88.084,3.76407117]
[1771120603989,3.44416272,88.136,88.084,3.76407117]
[1771120604191,3.44416272,88.136,88.091,3.76407117]
[1771120605101,10.2166,88.141,88.091,3.76407117]
[1771120605789,10.2166,88.141,88.095,3.76407117]
[1771120606185,13.476188,88.141,88.095,3.76407117]
[1771120606593,3.259588,88.14,88.095,3.76407117]
[1771120606894,3.259588,88.137,88.095,3.76407117]
[1771120607296,13.47694927,88.134,88.095,3.76407117]
[1771120608897,3.25954927,88.134,88.095,3.76407117]
[1771120609390,3.25954927,88.134,88.096,10.2216]
[1771120609590,3.25954927,88.134,88.096,13.98567117]
[1771120609991,3.25954927,88.134,88.097,3.76407117]
[1771120610197,13.47694927,88.134,88.097,3.76407117]
[1771120612691,3.28793794,88.133,88.097,3.76407117]
[1771120612896,3.28793794,88.143,88.081,3.76407117]
[1771120613203,3.28793794,88.143,88.091,3.76407117]
[1771120613900,3.28790167,88.137,88.091,3.76407117]
[1771120615903,3.28790167,88.137,88.092,3.76407117]
[1771120618903,3.28790167,88.137,88.093,10.222]
[1771120619098,3.28790167,88.137,88.1,2.40546103]
[1771120620400,13.50944391,88.136,88.094,3.76407117]
[1771120620601,3.29234391,88.135,88.094,3.76407117]
[1771120623110,3.29234391,88.135,88.1,6.16812824]
[1771120623497,3.31329234,88.157,88.111,3.76407117]
[1771120623702,3.31329234,88.157,88.13,2.40405707]
[1771120623903,3.31329234,88.179,88.13,2.40405707]
[1771120624498,10.2133,88.169,88.13,2.40405707]
[1771120624704,10.2133,88.169,88.14,2.40405707]
[1771120625304,3.31329234,88.179,88.14,6.16812824]
[1771120625506,474.48499786,88.181,88.15,2.40405707]
[1771120626406,464.27309786,88.181,88.15,2.40405707]
[1771120626610,464.27309786,88.181,88.102,90.56]
[1771120626611,16.625298,88.181,88.17,2.40405707]
[1771120626808,3.37597685,88.217,88.17,3.76407117]
[1771120627004,3.37597685,88.217,88.17,2.40405707]
[1771120627710,3.37594562,88.214,88.17,2.40405707]
[1771120628115,3.37594562,88.214,88.158,3.76407117]
[1771120628409,3.37594562,88.214,88.16,2.40405707]
[1771120628608,3.35291908,88.19,88.15,1.55383261]
[1771120628916,3.35291908,88.19,88.146,3.76407117]
[1771120629803,3.35291908,88.19,88.15,2.40405707]
[1771120630003,3.35291908,88.19,88.151,3.76407117]
[1771120630205,3.32066816,88.204,88.161,3.76407117]
[1771120631413,3.32063857,88.216,88.171,3.76407117]
[1771120632702,3.32357614,88.214,88.171,3.76407117]
[1771120633107,3.32357614,88.214,88.17,2.40405707]
[1771120633307,3.32357614,88.214,88.16,2.40405707]
[1771120633713,3.32159692,88.212,88.16,2.40405707]
[1771120634415,3.32159692,88.212,88.161,3.57977317]
[1771120635611,3.32159692,88.212,88.17,2.40405707]
[1771120636118,3.33659938,88.226,88.18,2.40405707]
[1771120636318,3.33659938,88.226,88.171,3.57977317]
[1771120637811,3.33657202,88.224,88.171,3.57977317]
[1771120638809,3.33958284,88.221,88.171,3.57977317]
[1771120639813,3.3395561,88.211,88.171,3.57977317]
[1771120640813,13.5444085,88.21,88.171,3.57977317]
[1771120642720,3.3359085,88.21,88.171,3.57977317]
[1771120642915,3.3618065,88.229,88.173,3.57977317]
[1771120643121,3.36178089,88.217,88.173,3.57977317]
[1771120644519,3.34538749,88.247,88.161,3.57977317]
[1771120644717,3.34538749,88.239,88.18,2.40405707]
[1771120644914,3.34538749,88.239,88.172,3.57977317]
[1771120645121,3.34536252,88.229,88.172,3.57977317]
[1771120645525,3.34536252,88.217,88.172,3.57977317]
[1771120646830,10.2079,88.216,88.172,3.57977317]
[1771120647023,3.35579284,88.215,88.172,3.57977317]
[1771120647930,3.35579284,88.215,88.17,2.40405707]
[1771120647931,3.35579284,88.209,88.17,2.40405707]
[1771120648431,3.35579284,88.209,88.171,3.57977317]
[1771120649523,10.208,88.215,88.171,3.57977317]
[1771120649932,10.2091,88.205,88.171,3.57977317]
[1771120654030,10.2096,88.201,88.16,2.40405707]
[1771120654228,10.2096,88.201,88.16,5.98383024]
[1771120654423,10.2096,88.201,88.161,3.57977317]
[1771120655231,10.2085,88.21,88.17,2.40405707]
[1771120655436,10.2085,88.21,88.171,3.57977317]
[1771120657533,10.2075,88.219,88.181,3.57977317]
[1771120657742,3.26169574,88.218,88.18,5.98383024]
[1771120657933,3.26169574,88.218,88.18,3.57977317]
[1771120659038,3.26169574,88.218,88.18,5.98383024]
[1771120659538,3.26169574,88.218,88.17,2.40405707]
[1771120660432,3.26169574,88.218,88.171,3.57977317]
[1771120660835,3.28501143,88.215,88.171,3.57977317]
[1771120661036,10.2078,88.216,88.171,3.57977317]
[1771120661440,3.28498542,88.215,88.171,3.57977317]
[1771120662339,2.40405707,88.23,88.171,3.57977317]
[1771120662340,3.23206753,88.213,88.171,3.57977317]
[1771120662939,3.23206753,88.213,88.16,6.29833016]
[1771120663239,3.23206753,88.213,88.161,3.89427309]
[1771120663733,3.23245634,88.21,88.161,3.89427309]
[1771120664333,3.23711198,88.209,88.15,2.40405707]
[1771120664537,3.23711198,88.197,88.15,2.40405707]
[1771120665438,3.2370929,88.192,88.15,2.40405707]
[1771120666230,3.21637908,88.188,88.14,2.40405707]
[1771120666942,3.21637908,88.188,88.141,3.89427309]
[1771120667844,10.2115,88.184,88.141,3.89427309]
[1771120668446,10.212,88.18,88.141,3.89427309]
[1771120671253,13.38617782,88.18,88.141,3.89427309]
[1771120674450,10.2109,88.189,88.141,3.89427309]
[1771120674759,10.2109,88.189,88.151,3.89427309]
[1771120674953,10.2111,88.187,88.151,3.89427309]
[1771120675153,3.19818473,88.186,88.14,2.40405707]
[1771120675549,3.19818473,88.186,88.141,3.89427309]
[1771120675754,3.19818473,88.186,88.15,2.40405707]
[1771120676559,13.4261293,88.184,88.15,2.40405707]
[1771120676751,13.4261293,88.184,88.141,3.89427309]
[1771120676957,3.2146293,88.184,88.141,3.89427309]
[1771120677158,3.2146293,88.184,88.15,2.40405707]
[1771120680863,3.2146293,88.184,88.15,2.40102339]
[1771120681456,3.2146293,88.184,88.151,3.89427309]
[1771120681865,3.2146293,88.184,88.15,2.40102339]
[1771120682064,3.2146293,88.184,88.14,2.40102339]
[1771120682265,3.2146293,88.184,88.14,6.29529648]
[1771120683367,3.2146293,88.184,88.141,3.89427309]
[1771120684259,3.2146293,88.184,88.15,2.40102339]
[1771120684768,3.2146293,88.184,88.15,6.29529648]
[1771120685770,10.2105,88.193,88.151,3.89427309]
[1771120685976,10.2108,88.19,88.151,3.89427309]
[1771120688871,10.2117,88.183,88.151,3.89427309]
[1771120689073,3.25995963,88.206,88.161,3.89427309]
[1771120689375,3.25995963,88.206,88.17,2.40102339]
[1771120690369,3.25995963,88.206,88.17,6.29529648]
[1771120691473,3.25995963,88.206,88.16,2.40102339]
[1771120692372,3.25995963,88.206,88.16,6.29529648]
[1771120692578,3.25995963,88.206,88.161,3.89427309]
[1771120697478,10.2093,88.203,88.161,3.89427309]
[1771120697780,3.2848481,88.202,88.161,3.89427309]
[1771120698175,3.2848481,88.202,88.122,34.1]
[1771120698176,3.2848481,88.202,88.157,10.2146]
[1771120698376,2.40102339,88.22,87.492,183.5938294]
[1771120698377,3.15239204,88.199,88.15,6.15247581]
[1771120698683,3.15239204,88.199,88.151,3.75145242]
[1771120699775,3.15237945,88.196,88.151,3.75145242]
[1771120700377,3.10989383,88.194,88.151,3.75145242]
[1771120700577,3.10989383,88.194,88.129,90.5]
[1771120700578,3.10989383,88.194,88.14,6.15247581]
[1771120700882,3.10989383,88.194,88.141,3.75145242]
[1771120701790,3.1098816,88.191,88.141,3.75145242]
[1771120702674,3.1098816,88.191,88.15,6.15247581]
[1771120707384,3.1098816,88.191,88.151,3.75145242]
[1771120708381,13.32904369,88.19,88.151,3.75145242]
[1771120709383,3.11813253,88.189,88.151,3.75145242]
[1771120709683,3.11813253,88.187,88.151,3.75145242]
[1771120710083,3.14016969,88.198,88.151,3.75145242]
[1771120710885,10.2101,88.197,88.151,3.75145242]
[1771120711082,3.14015875,88.218,88.161,3.75145242]
[1771120711878,3.14015875,88.218,88.171,3.75145242]
[1771120712081,3.14015875,88.218,88.181,3.75145242]
[1771120712276,3.14015875,88.218,88.17,6.15247581]
[1771120712481,3.14015875,88.218,88.16,6.15247581]
[1771120712682,3.14015875,88.218,88.161,3.75145242]
[1771120712878,3.1721501,88.208,88.161,3.75145242]
[1771120713891,10.2091,88.205,88.161,3.75145242]
[1771120714779,3.18916292,88.204,88.161,3.75145242]
[1771120716790,3.18916292,88.204,88.17,2.40102339]
[1771120720192,3.18916292,88.204,88.17,6.15247581]
[1771120721295,3.18916292,88.204,88.171,3.73993797]
[1771120721490,13.39920453,88.215,88.171,3.73993797]
[1771120721695,3.19130453,88.214,88.171,3.73993797]
[1771120723392,3.19130453,88.214,88.174,3.87310724]
[1771120723590,3.19130453,88.214,88.173,10.2127]
[1771120723591,3.1905605,88.225,88.181,3.87310724]
[1771120727203,3.20783151,88.221,88.181,3.87310724]
[1771120727800,3.20783151,88.218,88.181,3.87310724]
[1771120731702,3.19596717,88.199,88.14,2.40102339]
[1771120731912,3.19596717,88.199,88.136,3.87310724]
[1771120732211,3.20330216,88.189,88.136,3.87310724]
[1771120732407,3.20330216,88.184,88.136,3.87310724]
[1771120733707,10.2107,88.191,88.141,3.87310724]
[1771120733911,10.2107,88.191,88.151,3.87310724]
[1771120734107,3.20329379,88.195,88.16,2.40102339]
[1771120735907,3.20329379,88.195,88.151,3.87310724]
[1771120738308,3.12467125,88.2,88.151,3.87310724]
[1771120743513,3.12467125,88.2,88.12,308.60479218]
[1771120743514,3.12801038,88.217,88.171,3.87310724]
[1771120744219,10.2061,88.231,88.191,3.87310724]
[1771120744413,3.13925379,88.256,88.21,2.40089787]
[1771120744613,3.13925379,88.256,88.211,3.87310724]
[1771120747412,3.13925379,88.256,88.22,2.40089787]
[1771120747618,3.13925379,88.256,88.22,6.27400511]
[1771120748322,10.2024,88.263,88.221,3.87310724]
[1771120748525,3.27373631,88.268,88.221,3.87310724]
[1771120750125,2.40089787,88.29,88.23,2.40089787]
[1771120750421,3.3389519,88.294,88.241,3.87310724]
[1771120750623,10.1995,88.288,88.241,3.87310724]
[1771120751527,10.2002,88.282,88.241,3.87310724]
[1771120752026,3.33894497,88.287,88.241,3.87310724]
[1771120755032,10.1988,88.294,88.251,3.6393001]
[1771120755535,3.28310388,88.293,88.251,3.6393001]
[1771120757038,3.26819773,88.307,88.261,3.6393001]
[1771120758032,3.30494717,88.305,88.261,3.6393001]
[1771120758729,230.21158451,88.32,88.206,90.48]
[1771120758730,3.30494717,88.289,88.23,2.40089787]
[1771120759036,3.30494096,88.279,88.228,3.6393001]
[1771120759838,3.30494096,88.275,88.22,2.40089787]
[1771120760036,3.30494096,88.269,88.215,3.6393001]
[1771120760337,252.32,88.28,88.202,3.6393001]
[1771120760338,3.29867906,88.259,88.202,3.6393001]
[1771120761837,3.298673,88.257,88.202,3.6393001]
[1771120762235,10.2032,88.256,88.21,2.40089787]
[1771120763332,13.45848714,88.256,88.21,2.40089787]
[1771120763529,10.2036,88.253,88.202,3.6393001]
[1771120763731,3.25528714,88.252,88.202,3.6393001]
[1771120764142,3.2900917,88.249,88.19,3.6393001]
[1771120764343,3.2900917,88.242,88.19,3.6393001]
[1771120765539,3.2900917,88.242,88.191,3.6393001]
[1771120765839,3.29008592,88.238,88.191,3.6393001]
[1771120768937,2.40089787,88.26,88.211,3.6393001]
[1771120769134,3.25272074,88.278,88.231,3.6393001]
[1771120769434,3.25272074,88.267,88.213,3.6393001]
[1771120769839,3.25272074,88.259,88.201,3.6393001]
[1771120770041,10.2031,88.257,88.201,3.6393001]
[1771120770341,3.27591381,88.256,88.201,3.6393001]
[1771120770952,2.40089787,88.25,88.201,3.6393001]
[1771120771245,3.27590842,88.25,88.201,3.6393001]
[1771120771749,3.27590842,88.249,88.201,3.6393001]
[1771120772646,3.28257299,88.248,88.201,3.6393001]
[1771120773050,3.28257299,88.248,88.153,21.08993189]
[1771120773051,3.28256772,88.239,88.188,3.6393001]
[1771120773640,10.2053,88.238,88.188,3.6393001]
[1771120774042,3.22561921,88.237,88.188,3.6393001]
[1771120774348,13.43221921,88.226,88.176,3.6393001]
[1771120775344,10.2053,88.238,88.181,3.6393001]
[1771120776446,3.2256141,88.241,88.191,3.6393001]
[1771120777249,3.23527825,88.239,88.191,3.6393001]
[1771120777843,92.1,88.256,88.18,2.40089787]
[1771120777844,3.23527825,88.235,88.18,2.40089787]
[1771120778144,3.23527825,88.235,88.181,3.6393001]
[1771120778539,3.23527825,88.235,88.191,3.6393001]
[1771120778747,10.2045,88.245,88.191,3.6393001]
[1771120779146,10.2045,88.245,88.201,3.6393001]
[1771120780650,3.05738386,88.241,88.201,3.6393001]
[1771120783645,3.05738386,88.241,88.181,10.2117]
[1771120783646,3.77153935,88.293,88.21,2.40089787]
[1771120783848,3.77153935,88.279,88.211,2.50978358]
[1771120784049,3.77153935,88.269,88.211,2.50978358]
[1771120784953,3.77153935,88.269,88.213,2.51384275]
[1771120785449,3.77153935,88.269,88.215,12.7216374]
[1771120785753,3.77153935,88.269,88.216,2.5138374]
[1771120786141,3.77153935,88.269,88.221,2.4992604]
[1771120786852,3.77153935,88.269,88.221,12.7063604]
[1771120788349,3.77153935,88.269,88.228,10.2064]
[1771120790942,3.77153935,88.269,88.228,12.72910266]
[1771120791646,3.77153935,88.269,88.228,2.52270266]
[1771120793454,3.77153935,88.269,88.22,2.40089787]
[1771120793654,3.77153935,88.269,88.216,2.52262922]
[1771120795650,3.77153935,88.265,88.217,10.2076]
[1771120795955,3.77153935,88.265,88.218,2.52568992]
[1771120796854,3.77153935,88.265,88.22,2.40089787]
[1771120799356,3.77153935,88.265,88.22,4.93271019]
[1771120799758,3.77153935,88.265,88.221,2.53181232]
[1771120800260,3.77153935,88.265,88.181,34.1]
[1771120800261,3.77153935,88.249,88.191,2.45659095]
[1771120801257,3.77153935,88.249,88.2,2.40089787]
[1771120801758,10.2053,88.238,88.2,2.40089787]
[1771120801960,3.77153935,88.237,88.191,2.45659095]
[1771120802550,10.2063,88.229,88.191,2.45659095]
[1771120802956,3.77153935,88.237,88.191,2.45659095]
[1771120803155,3.77153935,88.259,88.201,2.57845062]
[1771120803660,3.77153935,88.254,88.201,2.57845062]
[1771120804052,3.77153935,88.254,88.211,2.62918654]
[1771120804254,3.77153935,88.254,88.18,21.08993189]
[1771120804255,3.77153935,88.267,88.221,2.62918654]
[1771120804656,3.77153935,88.267,88.23,2.40089787]
[1771120804962,3.77153935,88.267,88.23,2.39684546]
[1771120805258,2.39684546,88.29,88.231,2.62918224]
[1771120805450,3.77153935,88.289,88.231,2.62918224]
[1771120805856,3.77153935,88.283,88.241,2.62918224]
[1771120809862,3.77153935,88.283,88.23,2.39684546]
[1771120810366,2.39684546,88.28,88.23,2.39684546]
[1771120810565,3.77153935,88.279,88.23,2.39684546]
[1771120810966,3.77153935,88.279,88.231,2.69912061]
[1771120813159,3.77153935,88.279,88.232,12.94417111]
[1771120813366,3.77153935,88.279,88.24,2.39684546]
[1771120814969,3.77153935,88.279,88.232,12.94417111]
[1771120815471,3.77153935,88.279,88.233,2.74696717]
[1771120815666,3.77153935,88.279,88.23,2.39684546]
[1771120815667,3.92138062,88.294,88.251,2.74696717]
[1771120815867,3.92138062,88.309,88.26,2.39684546]
[1771120817567,3.92138062,88.309,88.261,2.7509813]
[1771120817766,3.92138062,88.309,88.27,2.39684546]
[1771120818459,3.92138062,88.309,88.261,2.7509813]
[1771120818870,3.92138062,88.309,88.261,12.9535813]
[1771120819071,3.92138062,88.299,88.24,2.39684546]
[1771120819269,3.92138062,88.299,88.234,2.79772441]
[1771120819772,3.92138062,88.299,88.24,2.39684546]
[1771120820169,3.92138062,88.284,88.234,2.79772441]
[1771120820365,2.39684546,88.28,88.221,2.71407525]
[1771120820568,3.92138062,88.279,88.221,2.71407525]
[1771120821774,3.92138062,88.273,88.221,2.71407525]
[1771120822364,2.39684546,88.27,88.221,2.71407525]
[1771120822567,3.92138062,88.268,88.221,2.71407525]
[1771120823463,2.39684546,88.28,88.207,2.65187402]
[1771120823464,3.92138062,88.257,88.207,2.65187402]
[1771120824877,3.92138062,88.267,88.211,2.63147116]
[1771120825078,3.92138062,88.267,88.221,2.63146779]
[1771120825277,3.92138062,88.281,88.231,2.63146779]
[1771120825681,3.92138062,88.309,88.25,2.39684546]
[1771120826682,3.92138062,88.309,88.241,2.63146779]
[1771120826882,3.92138062,88.297,88.241,2.63146779]
[1771120827787,3.92138062,88.284,88.24,2.39684546]
[1771120828079,3.92138062,88.284,88.23,2.39684546]
[1771120829591,3.92138062,88.284,88.24,2.39684546]
[1771120831190,3.92138062,88.284,88.241,2.66358072]
[1771120833892,3.92138062,88.284,88.227,2.66722764]
[1771120834095,3.92138062,88.279,88.227,2.66722764]
[1771120834293,3.92138062,88.279,88.22,2.39684546]
[1771120835196,3.92138062,88.269,88.21,2.39684546]
[1771120835592,3.92138062,88.269,88.18,90.42]